bitfinex-derivatives/quotes_BTCF0:USTF0_20241009
["timestamp","ask_amount","ask_price","bid_price","bid_amount"]
[1728511763089,0.083267,60817.0,60816.0,0.3818]
[1728511763285,0.083267,60817.0,60816.0,0.3678]
[1728511763895,0.084267,60817.0,60816.0,0.3818]
[1728511765783,0.084267,60817.0,60816.0,0.21028375]
[1728511766287,0.084267,60817.0,60816.0,0.1121302]
[1728511766488,0.084267,60817.0,60816.0,0.57108375]
[1728511767791,0.084267,60817.0,60816.0,0.4729302]
[1728511768202,0.084267,60817.0,60816.0,0.58129984]
[1728511768696,0.084267,60817.0,60816.0,0.57089864]
[1728511768994,0.084267,60817.0,60816.0,0.11201429]
[1728511770108,0.002,60817.0,60816.0,0.11201429]
[1728511772496,0.084267,60817.0,60816.0,0.021]
[1728511772802,0.166967,60817.0,60816.0,0.021]
[1728511775505,1.36798,60817.0,60810.0,0.08172345]
[1728511775801,1.36798,60817.0,60801.0,0.4019]
[1728511775802,0.082282,60807.0,60806.0,0.082281]
[1728511777403,0.083282,60807.0,60806.0,0.095281]
[1728511778105,0.083282,60807.0,60806.0,0.285281]
[1728511779106,0.084282,60807.0,60806.0,0.285281]
[1728511787305,0.084282,60807.0,60806.0,0.272281]
[1728511787306,0.002,60807.0,60806.0,0.272281]
[1728511787906,0.002,60807.0,60806.0,0.35387231]
[1728511788312,0.002,60807.0,60806.0,0.36385758]
[1728511788706,0.0038,60815.0,60806.0,1.13573658]
[1728511788910,0.36228,60823.0,60817.0,0.082267]
[1728511788911,0.0038,60820.0,60817.0,0.082267]
[1728511789103,0.0038,60820.0,60819.0,0.19]
[1728511789104,0.082264,60820.0,60819.0,0.19]
[1728511789415,0.082266,60818.0,60816.0,0.27168102]
[1728511789915,0.082266,60818.0,60816.0,0.35394802]
[1728511791010,0.083266,60818.0,60816.0,0.35394802]
[1728511791200,0.084266,60818.0,60816.0,0.35394802]
[1728511791405,0.082267,60817.0,60816.0,0.35394802]
[1728511791606,0.002,60818.0,60817.0,0.082267]
[1728511791913,0.002,60818.0,60817.0,0.53432047]
[1728511791914,0.001,60818.0,60817.0,0.53432047]
[1728511792114,0.001,60818.0,60817.0,0.64295624]
[1728511792413,0.002,60818.0,60817.0,0.64295624]
[1728511793013,0.002,60818.0,60817.0,0.28315624]
[1728511793316,0.002,60818.0,60817.0,0.17452047]
[1728511795920,0.002,60818.0,60817.0,0.27256761]
[1728511796608,0.002,60818.0,60817.0,0.17452047]
[1728511797528,0.002,60818.0,60817.0,0.27256061]
[1728511797915,0.002,60818.0,60817.0,0.17452047]
[1728511799106,0.084265,60818.0,60817.0,0.09225347]
[1728511800609,0.083265,60818.0,60817.0,0.09125347]
[1728511800810,0.084265,60818.0,60817.0,0.09223602]
[1728511801012,0.083265,60818.0,60817.0,0.09223602]
[1728511801314,0.084265,60818.0,60817.0,0.09223602]
[1728511801728,0.002,60818.0,60817.0,0.17450302]
[1728511801909,0.002,60818.0,60817.0,0.27254812]
[1728511802311,0.002,60818.0,60817.0,0.17450302]
[1728511802608,0.002,60818.0,60817.0,0.28312237]
[1728511802812,0.001,60818.0,60817.0,0.17450302]
[1728511803020,0.002,60818.0,60817.0,0.28315724]
[1728511803219,0.002,60818.0,60817.0,0.28315444]
[1728511804414,0.002,60818.0,60817.0,0.2826059]
[1728511804920,0.0114,60833.0,60827.0,0.082253]
[1728511805119,0.082242,60836.0,60827.0,0.28089458]
[1728511805310,0.082242,60836.0,60835.0,0.19]
[1728511805509,0.082237,60839.0,60835.0,0.272242]
[1728511805722,0.082237,60839.0,60836.0,0.082241]
[1728511805912,0.082237,60839.0,60836.0,0.16386124]
[1728511806108,0.082237,60839.0,60837.0,0.3608]
[1728511806308,0.082237,60839.0,60837.0,0.08162024]
[1728511806513,0.082237,60839.0,60836.0,0.08162024]
[1728511806714,0.082237,60839.0,60835.0,0.27162024]
[1728511806715,0.08224,60837.0,60835.0,0.27162024]
[1728511806918,0.08224,60837.0,60835.0,0.19]
[1728511807821,0.08824,60837.0,60835.0,0.19]
[1728511808724,0.08824,60837.0,60835.0,0.21849766]
[1728511808909,0.09524,60837.0,60835.0,0.21849766]
[1728511809917,0.013,60837.0,60836.0,0.082241]
[1728511810123,0.013,60837.0,60836.0,0.17252048]
[1728511810920,0.0038,60845.0,60844.0,0.08223]
[1728511811126,0.082225,60849.0,60844.0,0.27223]
[1728511811315,0.082225,60849.0,60845.0,0.082229]
[1728511811519,0.082225,60849.0,60848.0,0.19]
[1728511812423,0.090225,60849.0,60848.0,0.19]
[1728511812926,0.082225,60849.0,60848.0,0.191]
[1728511813617,0.082225,60849.0,60848.0,0.198]
[1728511817424,0.082225,60849.0,60848.0,0.008]
[1728511817828,0.082225,60849.0,60834.0,0.3608]
[1728511817829,1.09304,60849.0,60834.0,0.3608]
[1728511818030,0.082242,60835.0,60833.0,0.3608]
[1728511818228,0.082244,60834.0,60833.0,0.3608]
[1728511818437,0.082244,60834.0,60833.0,0.47158111]
[1728511819132,0.082244,60834.0,60833.0,0.48058111]
[1728511819833,0.083244,60834.0,60833.0,0.48058111]
[1728511820527,0.084244,60834.0,60833.0,0.48758111]
[1728511821520,0.084244,60834.0,60833.0,0.54862912]
[1728511821726,0.084244,60834.0,60833.0,0.3768]
[1728511822025,0.084244,60834.0,60833.0,0.3698]
[1728511822228,0.084244,60834.0,60833.0,0.3628]
[1728511823028,0.083244,60834.0,60833.0,0.3608]
[1728511823337,0.084244,60834.0,60833.0,0.3628]
[1728511824833,0.084244,60834.0,60833.0,0.3608]
[1728511825138,0.083244,60834.0,60833.0,0.3698]
[1728511825325,0.084244,60834.0,60833.0,0.4512651]
[1728511826028,0.084244,60834.0,60833.0,0.5417253]
[1728511826232,0.084244,60834.0,60833.0,0.4602602]
[1728511828338,0.084244,60834.0,60833.0,0.3698]
[1728511828537,0.084244,60834.0,60833.0,0.46031574]
[1728511829641,0.084244,60834.0,60833.0,0.46034171]
[1728511829851,0.084244,60834.0,60833.0,0.3698]
[1728511830039,0.084244,60834.0,60833.0,0.46034181]
[1728511831339,0.084244,60834.0,60833.0,0.55828404]
[1728511831740,0.084244,60834.0,60833.0,0.55832725]
[1728511832243,0.084244,60834.0,60833.0,0.46038502]
[1728511833045,0.084244,60834.0,60833.0,0.55840601]
[1728511833445,0.084244,60834.0,60833.0,0.46038502]
[1728511834243,0.084244,60834.0,60833.0,0.56845526]
[1728511834943,0.0082,60858.0,60833.0,1.35619903]
[1728511835144,0.0082,60871.0,60857.0,0.5508]
[1728511835333,0.0394,60872.0,60857.0,0.5508]
[1728511835334,0.0394,60872.0,60870.0,0.19]
[1728511835538,0.0394,60872.0,60871.0,0.08160409]
[1728511835740,0.0394,60872.0,60871.0,0.17511022]
[1728511836036,0.0394,60872.0,60871.0,0.09354586]
[1728511836232,0.0394,60872.0,60870.0,0.272195]
[1728511836751,0.0524,60872.0,60871.0,0.083194]
[1728511837050,0.013,60872.0,60871.0,0.083194]
[1728511837941,0.015,60872.0,60871.0,0.083194]
[1728511838534,0.002,60872.0,60871.0,0.082194]
[1728511838753,0.004,60872.0,60871.0,0.082194]
[1728511838941,0.002,60872.0,60871.0,0.094194]
[1728511839248,0.001,60872.0,60871.0,0.108194]
[1728511841443,0.0394,60883.0,60871.0,0.108194]
[1728511841639,0.0394,60883.0,60882.0,0.272179]
[1728511841845,0.00246445,60885.0,60882.0,0.272179]
[1728511841846,0.00246445,60885.0,60884.0,0.082176]
[1728511843148,0.00246445,60885.0,60884.0,0.442976]
[1728511843351,0.082158,60898.0,60884.0,1.45352]
[1728511843552,0.0421,60901.0,60897.0,0.19]
[1728511843553,0.082157,60899.0,60897.0,0.19]
[1728511843743,0.0421,60901.0,60897.0,0.19]
[1728511843744,0.082157,60898.0,60897.0,0.19]
[1728511844049,0.0421,60901.0,60898.0,0.082157]
[1728511844743,0.124254,60901.0,60898.0,0.082157]
[1728511845749,0.135254,60901.0,60898.0,0.083157]
[1728511846541,0.141254,60901.0,60898.0,0.084157]
[1728511847549,0.141254,60901.0,60899.0,0.082156]
[1728511847550,0.0591,60901.0,60899.0,0.082156]
[1728511847746,0.0591,60901.0,60898.0,0.002]
[1728511847747,0.099153,60901.0,60898.0,0.002]
[1728511848756,0.099153,60901.0,60899.0,0.001]
[1728511849052,0.093153,60901.0,60899.0,0.001]
[1728511849254,0.100153,60901.0,60899.0,0.002]
[1728511849854,0.082155,60900.0,60899.0,0.001]
[1728511850454,0.082155,60900.0,60898.0,0.002]
[1728511850650,0.082155,60900.0,60899.0,0.001]
[1728511851352,0.082155,60900.0,60899.0,0.002]
[1728511851353,0.093155,60900.0,60899.0,0.002]
[1728511852258,0.018,60900.0,60899.0,0.002]
[1728511852461,0.018,60900.0,60899.0,0.084156]
[1728511860663,0.100155,60900.0,60899.0,0.002]
[1728511861665,0.953555,60900.0,60899.0,0.002]
[1728511861850,1.553555,60900.0,60889.0,0.19]
[1728511862055,0.082163,60894.0,60893.0,0.19]
[1728511862565,0.442963,60894.0,60889.0,0.19]
[1728511862751,0.442963,60894.0,60884.0,0.3608]
[1728511862752,0.19,60892.0,60884.0,0.3608]
[1728511862958,0.19,60892.0,60880.0,0.00246337]
[1728511862959,0.08218,60881.0,60880.0,0.00246337]
[1728511863759,0.49276,60881.0,60869.0,0.19084]
[1728511863961,0.082195,60870.0,60869.0,0.19]
[1728511865762,0.083195,60870.0,60869.0,0.204]
[1728511866767,0.084195,60870.0,60869.0,0.218]
[1728511867171,0.082188,60876.0,60869.0,0.218]
[1728511867462,0.0419,60877.0,60876.0,0.19]
[1728511867675,0.3608,60878.0,60876.0,0.19]
[1728511867676,0.3608,60878.0,60877.0,0.082186]
[1728511867855,0.085974,60886.0,60877.0,0.082186]
[1728511867856,0.082182,60881.0,60877.0,0.082186]
[1728511868163,0.082179,60883.0,60880.0,0.272182]
[1728511868365,0.082179,60883.0,60882.0,0.19]
[1728511869755,0.082179,60883.0,60882.0,0.272179]
[1728511870062,0.0419,60885.0,60884.0,0.082176]
[1728511870364,0.3608,60902.0,60891.0,0.082167]
[1728511870566,0.3608,60902.0,60896.0,0.19]
[1728511870768,0.082155,60901.0,60892.0,0.4033]
[1728511871062,0.082155,60901.0,60898.0,0.082157]
[1728511871261,0.082153,60901.0,60900.0,0.19]
[1728511872469,0.087153,60901.0,60900.0,0.191]
[1728511873570,0.097153,60901.0,60900.0,0.192]
[1728511874064,0.097153,60901.0,60900.0,0.274155]
[1728511875874,0.097153,60901.0,60900.0,0.192]
[1728511876763,0.097153,60901.0,60892.0,0.5508]
[1728511876764,0.082164,60893.0,60892.0,0.5508]
[1728511878370,0.089164,60893.0,60892.0,0.5518]
[1728511878563,0.096164,60893.0,60892.0,0.5528]
[1728511879172,0.096164,60893.0,60892.0,0.192]
[1728511885873,0.082174,60886.0,60884.0,0.19]
[1728511886074,0.082175,60885.0,60884.0,0.19]
[1728511886269,0.0418,60892.0,60884.0,0.19]
[1728511886468,0.082174,60886.0,60884.0,0.19]
[1728511888877,0.082169,60890.0,60886.0,0.082173]
[1728511889078,0.3608,60893.0,60892.0,0.082165]
[1728511889574,0.082167,60891.0,60890.0,0.19]
[1728511891381,0.087167,60891.0,60890.0,0.19]
[1728511891783,0.093167,60891.0,60890.0,0.19]
[1728511893276,0.093167,60891.0,60890.0,0.272168]
[1728511893683,0.093167,60891.0,60890.0,0.19]
[1728511899395,0.3618,60896.0,60890.0,0.19]
[1728511899580,0.156313,60926.0,60890.0,0.19]
[1728511899581,0.00084,60931.0,60930.0,0.082114]
[1728511899888,0.12,60931.0,60930.0,0.73254418]
[1728511900091,0.02831314,60934.0,60933.0,0.08211]
[1728511900384,0.02831314,60934.0,60933.0,0.27211]
[1728511900980,0.442901,60940.0,60933.0,0.27211]
[1728511901290,0.442901,60940.0,60933.0,0.19]
[1728511901589,0.19,60937.0,60924.0,0.3608]
[1728511901784,0.442912,60932.0,60924.0,0.3608]
[1728511901992,0.442912,60932.0,60924.0,0.442922]
[1728511902191,0.002,60931.0,60930.0,0.001]
[1728511902682,0.442912,60932.0,60925.0,0.082121]
[1728511902882,0.082115,60930.0,60925.0,0.082121]
[1728511904094,0.082115,60930.0,60926.0,0.082119]
[1728511904480,0.001,60931.0,60926.0,0.082119]
[1728511905386,0.082118,60927.0,60925.0,0.001]
[1728511906188,0.08212,60926.0,60925.0,0.001]
[1728511906690,0.08212,60926.0,60924.0,0.3608]
[1728511907385,0.08212,60926.0,60925.0,0.004]
[1728511907594,0.08212,60926.0,60925.0,0.007]
[1728511908091,0.08212,60926.0,60925.0,0.003]
[1728511909093,0.08212,60926.0,60924.0,0.3688]
[1728511909496,0.08212,60926.0,60924.0,0.3648]
[1728511909698,0.08212,60926.0,60925.0,0.004]
[1728511909992,0.08212,60926.0,60925.0,0.008]
[1728511910797,0.08212,60926.0,60925.0,0.004]
[1728511910993,0.3608,60932.0,60924.0,0.3688]
[1728511911293,0.442912,60932.0,60931.0,0.19]
[1728511911496,0.082115,60930.0,60928.0,0.272117]
[1728511912096,0.082116,60929.0,60928.0,0.272117]
[1728511913494,0.082116,60929.0,60928.0,0.19]
[1728511913695,0.082116,60929.0,60928.0,0.191]
[1728511913882,0.082116,60929.0,60928.0,0.192]
[1728511920195,0.082116,60929.0,60928.0,0.274117]
[1728511924799,0.082116,60929.0,60928.0,0.192]
[1728511927003,0.082116,60929.0,60928.0,0.002]
[1728511928003,0.272116,60929.0,60928.0,0.002]
[1728511928199,0.292116,60929.0,60928.0,0.002]
[1728511928403,1.384516,60929.0,60928.0,0.002]
[1728511928610,0.082126,60921.0,60916.0,0.06480466]
[1728511928807,0.082134,60915.0,60914.0,0.06480466]
[1728511929107,0.082134,60915.0,60911.0,0.3608]
[1728511929108,0.082134,60915.0,60913.0,0.08100582]
[1728511929296,0.3134,60920.0,60911.0,0.3608]
[1728511929297,0.082138,60912.0,60911.0,0.44180582]
[1728511929499,0.082138,60912.0,60911.0,0.3608]
[1728511930694,0.083138,60912.0,60911.0,0.3748]
[1728511930899,0.083138,60912.0,60911.0,0.47472556]
[1728511931097,0.083138,60912.0,60911.0,0.57193255]
[1728511931301,0.083138,60912.0,60911.0,0.47472556]
[1728511931601,0.083138,60912.0,60911.0,0.11392556]
[1728511931804,0.083138,60912.0,60911.0,0.014]
[1728511932004,1.175658,60912.0,60911.0,0.028]
[1728511933408,1.295658,60912.0,60907.0,0.06519689]
[1728511933602,0.5508,60908.0,60905.0,0.06519689]
[1728511934203,0.5508,60908.0,60903.0,0.06519689]
[1728511934410,0.082149,60904.0,60903.0,0.06519689]
[1728511934905,0.082152,60902.0,60899.0,0.16365211]
[1728511935107,0.082152,60902.0,60899.0,0.08149611]
[1728511935311,0.082152,60902.0,60900.0,0.082155]
[1728511936305,0.083152,60902.0,60900.0,0.082155]
[1728511936702,0.083152,60902.0,60900.0,0.092155]
[1728511937005,0.083152,60902.0,60900.0,0.019]
[1728511937006,0.082153,60901.0,60900.0,0.019]
[1728511937211,0.121953,60901.0,60900.0,0.019]
[1728511938900,0.121953,60901.0,60900.0,0.01]
[1728511939107,0.311953,60901.0,60900.0,0.01]
[1728511939303,0.082155,60900.0,60899.0,0.06506016]
[1728511940317,0.082156,60899.0,60898.0,0.06506016]
[1728511942115,0.083156,60899.0,60898.0,0.15621716]
[1728511943020,0.084156,60899.0,60898.0,0.16521716]
[1728511943206,0.084156,60899.0,60898.0,0.100157]
[1728511944511,0.084156,60899.0,60898.0,0.16521716]
[1728511945700,0.084156,60899.0,60898.0,0.100157]
[1728511948422,0.084156,60899.0,60898.0,0.018]
[1728511950313,0.084156,60899.0,60898.0,0.3788]
[1728511952210,0.444956,60899.0,60898.0,0.018]
[1728511952408,0.444956,60899.0,60886.0,0.06506016]
[1728511952409,1.46544,60899.0,60886.0,0.06506016]
[1728511952607,1.46544,60899.0,60881.0,0.06506016]
[1728511952608,0.3608,60887.0,60881.0,0.06506016]
[1728511952813,0.3608,60887.0,60879.0,0.00246357]
[1728511952814,0.082182,60880.0,60879.0,0.00246357]
[1728511953017,0.082182,60880.0,60879.0,0.06758479]
[1728511953320,0.082182,60880.0,60879.0,0.00246357]
[1728511953818,0.082182,60880.0,60877.0,0.14730622]
[1728511953819,0.082184,60878.0,60877.0,0.14730622]
[1728511954013,0.082184,60878.0,60877.0,0.272185]
[1728511955312,0.083184,60878.0,60877.0,0.272185]
[1728511956021,0.084184,60878.0,60877.0,0.272185]
[1728511956518,0.084184,60878.0,60877.0,0.082185]
[1728511956817,0.083184,60878.0,60877.0,0.082185]
[1728511957118,0.084184,60878.0,60877.0,0.082185]
[1728511958518,0.083184,60878.0,60877.0,0.082185]
[1728511958822,0.084184,60878.0,60877.0,0.082185]
[1728511961317,0.083184,60878.0,60877.0,0.082185]
[1728511961523,0.084184,60878.0,60877.0,0.082185]
[1728511961708,0.002,60878.0,60877.0,1.364985]
[1728511961912,0.001,60878.0,60877.0,1.38389016]
[1728511962117,0.001,60878.0,60877.0,0.78389016]
[1728511962321,0.002,60878.0,60877.0,0.8816855]
[1728511962712,0.002,60878.0,60877.0,0.78389016]
[1728511962912,0.002,60878.0,60877.0,0.9638715]
[1728511964222,0.082181,60881.0,60879.0,0.082182]
[1728511964522,0.082181,60881.0,60880.0,0.10109016]
[1728511965515,0.084181,60881.0,60880.0,0.10109016]
[1728511966113,0.082182,60880.0,60879.0,0.002]
[1728511966321,0.082182,60880.0,60879.0,0.10309107]
[1728511966619,0.082182,60880.0,60879.0,0.10209107]
[1728511967117,0.082182,60880.0,60879.0,0.10109107]
[1728511967822,0.083182,60880.0,60879.0,0.10309107]
[1728511968823,0.084182,60880.0,60879.0,0.10509107]
[1728511969412,0.084182,60880.0,60879.0,0.20283271]
[1728511971313,0.084182,60880.0,60879.0,0.10509107]
[1728511972525,0.084182,60880.0,60879.0,0.225522]
[1728511972825,0.084182,60880.0,60879.0,0.10509107]
[1728511973219,0.084182,60880.0,60879.0,0.22554223]
[1728511974426,0.084182,60880.0,60879.0,0.10509107]
[1728511974619,0.084182,60880.0,60879.0,0.22563633]
[1728511975227,0.083182,60880.0,60879.0,0.22363633]
[1728511975533,0.084182,60880.0,60879.0,0.19901824]
[1728511976718,0.083182,60880.0,60879.0,0.10109107]
[1728511976922,0.084182,60880.0,60879.0,0.19902829]
[1728511977122,0.084182,60880.0,60879.0,0.10109107]
[1728511977325,0.084182,60880.0,60879.0,0.10309107]
[1728511977719,0.083182,60880.0,60879.0,0.10109107]
[1728511978025,0.084182,60880.0,60879.0,0.20107312]
[1728511978527,0.125882,60880.0,60879.0,0.10309107]
[1728511980226,0.125882,60880.0,60879.0,0.20107312]
[1728511980428,0.125882,60880.0,60879.0,0.20148876]
[1728511981327,0.125882,60880.0,60879.0,0.10350671]
[1728511981519,0.125882,60880.0,60879.0,0.2245867]
[1728511982522,0.002,60880.0,60879.0,0.2245867]
[1728511982724,0.0038,60889.0,60879.0,0.49676841]
[1728511982928,0.08217,60889.0,60888.0,0.09816545]
[1728511983129,0.08217,60889.0,60888.0,0.10150671]
[1728511984031,0.001,60889.0,60888.0,0.1012759]
[1728511984241,0.08317,60889.0,60888.0,0.1834469]
[1728511984541,0.08317,60889.0,60888.0,0.30411143]
[1728511984728,0.08417,60889.0,60888.0,0.30411143]
[1728511985022,0.08417,60889.0,60888.0,0.30411427]
[1728511985333,0.08317,60889.0,60888.0,0.30411427]
[1728511987329,0.08317,60889.0,60888.0,0.22194327]
[1728511987525,0.08317,60889.0,60888.0,0.22176403]
[1728511988831,0.001,60889.0,60888.0,0.22173475]
[1728511989533,0.08317,60889.0,60888.0,0.22173475]
[1728511990737,0.08317,60889.0,60888.0,0.30390575]
[1728511990937,0.08317,60889.0,60888.0,0.18332913]
[1728511992550,0.08317,60889.0,60888.0,0.10115813]
[1728511993533,0.001,60889.0,60887.0,0.0817923]
[1728511993733,0.001,60889.0,60888.0,0.0817923]
[1728511993734,0.08317,60889.0,60888.0,0.0817923]
[1728511995036,0.08317,60889.0,60886.0,0.0817923]
[1728511995037,0.001,60889.0,60886.0,0.0817923]
[1728511995234,0.001,60889.0,60886.0,0.08179801]
[1728511995235,0.272172,60887.0,60886.0,0.08179801]
[1728511995434,0.272172,60887.0,60886.0,0.18319383]
[1728511997035,0.272172,60887.0,60886.0,0.18519383]
[1728511997235,0.272172,60887.0,60886.0,0.18719383]
[1728511998034,0.272172,60887.0,60886.0,0.10539582]
[1728511998240,0.272172,60887.0,60886.0,0.10539157]
[1728511998635,0.082172,60887.0,60886.0,0.22620602]
[1728511998838,0.082172,60887.0,60886.0,0.22620223]
[1728512003041,0.082172,60887.0,60886.0,0.226262]
[1728512004036,0.082172,60887.0,60886.0,0.10539867]
[1728512004743,1.274892,60887.0,60886.0,0.08186735]
[1728512004943,1.274892,60887.0,60884.0,0.08186735]
[1728512004944,0.082175,60885.0,60884.0,0.08186735]
[1728512005147,0.082176,60884.0,60883.0,0.08186735]
[1728512005344,0.742976,60884.0,60883.0,0.08186735]
[1728512005550,1.235736,60884.0,60883.0,0.08186735]
[1728512005943,0.742976,60884.0,60883.0,0.08186735]
[1728512007155,0.6608,60884.0,60882.0,0.08186735]
[1728512007337,0.082182,60880.0,60879.0,0.09823655]
[1728512008055,0.0422,60882.0,60879.0,0.09823655]
[1728512008056,0.08218,60881.0,60879.0,0.09823655]
[1728512008253,0.082182,60880.0,60879.0,0.09823655]
[1728512008549,0.083182,60880.0,60879.0,0.09823655]
[1728512008946,0.084182,60880.0,60879.0,0.09823655]
[1728512009554,0.444982,60880.0,60879.0,0.09823655]
[1728512010051,0.443982,60880.0,60879.0,0.09823655]
[1728512010249,0.443982,60880.0,60879.0,0.09923655]
[1728512010950,0.444982,60880.0,60879.0,0.09923655]
[1728512013252,0.084182,60880.0,60879.0,0.09923655]
[1728512016259,0.084182,60880.0,60879.0,0.001]
[1728512016454,0.082192,60872.0,60871.0,0.09823655]
[1728512016646,0.082192,60872.0,60866.0,0.09823655]
[1728512016647,0.082197,60869.0,60866.0,0.09823655]
[1728512016844,0.3608,60867.0,60865.0,0.09823655]
[1728512017047,0.082205,60863.0,60861.0,0.09823655]
[1728512017247,0.08221,60859.0,60858.0,0.09823655]
[1728512017443,0.082211,60858.0,60857.0,0.50143655]
[1728512017747,0.082211,60858.0,60857.0,0.4032]
[1728512018151,0.082211,60858.0,60857.0,0.45897874]
[1728512018855,0.083211,60858.0,60857.0,0.45997874]
[1728512019054,0.083211,60858.0,60857.0,0.001]
[1728512020160,0.083211,60858.0,60857.0,0.06642528]
[1728512020359,0.083211,60858.0,60857.0,0.001]
[1728512020659,0.084211,60858.0,60857.0,0.001]
[1728512021053,0.083211,60858.0,60852.0,0.0077]
[1728512021246,0.083211,60858.0,60857.0,0.001]
[1728512021448,0.084211,60858.0,60857.0,0.001]
[1728512022154,0.084211,60858.0,60852.0,0.06542477]
[1728512022155,0.083211,60858.0,60852.0,0.06542477]
[1728512022351,0.633018,60853.0,60852.0,0.06642477]
[1728512023357,0.633018,60853.0,60852.0,0.001]
[1728512023947,0.272218,60853.0,60852.0,0.001]
[1728512024153,0.634018,60853.0,60852.0,0.001]
[1728512024351,0.082221,60851.0,60850.0,0.10822477]
[1728512025254,0.082221,60851.0,60850.0,0.0428]
[1728512025455,0.083221,60851.0,60850.0,0.0438]
[1728512026453,0.084221,60851.0,60850.0,0.0438]
[1728512033669,0.084221,60851.0,60850.0,0.10922477]
[1728512034169,0.084221,60851.0,60850.0,0.10907159]
[1728512034465,0.002,60851.0,60850.0,0.126022]
[1728512034654,0.08221,60859.0,60853.0,0.082218]
[1728512034857,0.08221,60859.0,60855.0,0.06527965]
[1728512035055,0.08221,60859.0,60854.0,0.37819565]
[1728512035056,0.082214,60856.0,60854.0,0.37819565]
[1728512035267,0.082214,60856.0,60855.0,0.06527965]
[1728512035458,0.082214,60856.0,60854.0,0.312916]
[1728512035661,0.082215,60855.0,60854.0,0.312916]
[1728512037060,0.083215,60855.0,60854.0,0.0417]
[1728512037372,0.634015,60855.0,60854.0,0.001]
[1728512038764,0.635015,60855.0,60854.0,0.004]
[1728512040072,0.635015,60855.0,60854.0,0.0693393]
[1728512040664,0.445015,60855.0,60854.0,0.0693393]
[1728512041474,0.445015,60855.0,60854.0,0.004]
[1728512044276,0.445015,60855.0,60854.0,0.10464843]
[1728512044472,0.445015,60855.0,60854.0,0.10463856]
[1728512044671,0.084215,60855.0,60854.0,0.10463856]
[1728512045474,0.084215,60855.0,60854.0,0.13297728]
[1728512045675,0.084215,60855.0,60854.0,0.29500222]
[1728512045873,0.002,60855.0,60854.0,0.37721922]
[1728512046184,0.082206,60862.0,60856.0,0.082214]
[1728512046185,0.082213,60857.0,60856.0,0.082214]
[1728512046479,0.082213,60857.0,60856.0,0.4927775]
[1728512046875,0.082213,60857.0,60856.0,0.78937039]
[1728512047379,0.084213,60857.0,60856.0,0.5382775]
[1728512047577,0.084213,60857.0,60856.0,0.2235635]
[1728512047881,0.635013,60857.0,60856.0,0.10363856]
[1728512048968,0.6628375,60857.0,60856.0,0.10363856]
[1728512053873,0.3020375,60857.0,60856.0,0.10363856]
[1728512054080,0.6628375,60857.0,60856.0,0.10363856]
[1728512054975,0.445013,60857.0,60856.0,0.10363856]
[1728512055577,0.445013,60857.0,60856.0,0.2020918]
[1728512056489,0.445013,60857.0,60856.0,0.10363856]
[1728512057776,0.445013,60857.0,60856.0,0.22392122]
[1728512058480,0.084213,60857.0,60856.0,0.22392122]
[1728512058681,0.084213,60857.0,60856.0,0.22414302]
[1728512063795,0.084213,60857.0,60856.0,0.22414993]
[1728512064789,0.36164,60866.0,60856.0,0.71704557]
[1728512064990,0.36164,60866.0,60861.0,0.082205]
[1728512064991,0.082207,60862.0,60861.0,0.082205]
[1728512065291,0.082207,60862.0,60861.0,0.30314811]
[1728512066283,0.082207,60862.0,60861.0,0.082205]
[1728512066588,0.083207,60862.0,60861.0,0.086205]
[1728512068094,0.084207,60862.0,60861.0,0.089205]
[1728512072094,0.002,60862.0,60861.0,0.089205]
[1728512072998,0.002,60862.0,60861.0,0.55048648]
[1728512073188,0.082203,60865.0,60864.0,0.082203]
[1728512073491,0.082203,60865.0,60864.0,0.49219093]
[1728512074093,0.082203,60865.0,60864.0,0.10048148]
[1728512074495,0.082203,60865.0,60864.0,0.10348148]
[1728512075893,0.082203,60865.0,60864.0,0.10623165]
[1728512077911,0.272203,60865.0,60864.0,0.18811389]
[1728512078204,0.272203,60865.0,60864.0,0.006]
[1728512078396,0.356603,60865.0,60864.0,0.07151416]
[1728512078703,0.356603,60865.0,60864.0,0.006]
[1728512079205,0.399703,60865.0,60864.0,0.07151872]
[1728512080998,0.399703,60865.0,60864.0,0.006]
[1728512083305,0.399703,60865.0,60864.0,0.05514758]
[1728512084401,0.082203,60865.0,60864.0,0.006]
[1728512084607,0.082203,60865.0,60864.0,0.0715301]
[1728512085016,0.082203,60865.0,60864.0,0.006]
[1728512085401,0.082203,60865.0,60864.0,0.0715301]
[1728512086310,0.082203,60865.0,60864.0,0.006]
[1728512088308,0.049903,60865.0,60864.0,0.10636603]
[1728512093307,0.049903,60865.0,60864.0,0.20463265]
[1728512093521,0.049903,60865.0,60864.0,0.10636603]
[1728512094310,0.049903,60865.0,60864.0,0.22604804]
[1728512095505,0.049903,60865.0,60864.0,0.10636603]
[1728512099114,0.049903,60865.0,60864.0,0.22604667]
[1728512101218,0.049903,60865.0,60864.0,0.10636603]
[1728512101705,0.410703,60865.0,60864.0,0.10636603]
[1728512101907,0.600703,60865.0,60864.0,0.10636603]
[1728512102809,0.082203,60864.0,60862.0,0.0380612]
[1728512103108,0.736823,60864.0,60863.0,0.06564595]
[1728512103312,1.526823,60864.0,60856.0,0.09842489]
[1728512103509,1.526823,60864.0,60847.0,0.0115]
[1728512103510,0.082225,60848.0,60847.0,0.0115]
[1728512103810,0.19,60852.0,60844.0,0.27415489]
[1728512104011,0.082229,60845.0,60844.0,0.0935]
[1728512104304,0.082229,60845.0,60844.0,0.0858]
[1728512106724,0.083229,60845.0,60844.0,0.0858]
[1728512107113,0.084229,60845.0,60844.0,0.0858]